{"text_format":"3","workbook":"xlsx","n_sheets":4,"sheets":["ALOITUS","PROJEKTIPARAMETRIT","PROJEKTIN TIEDOT","PROJEKTIN SUMMAT"],"not_rendered":{"charts":2,"defined_names":3,"pivot_tables":1},"read":"whole","date_system":"1900"}

{"sheet":"ALOITUS","index":0,"n_rows":7,"n_cols":2,"rows_kept":7}
[null,"TIETOJA TÄSTÄ MALLISTA"]
[null,"Tämän Tapahtumasuunnittelu-työkirjan avulla seuraat projektin parametreja, tietoja ja kokonaissummia."]
[null,"Päivitä pylväskaaviot täyttämällä tarvittavat tiedot Projektiparametrit- ja Projektitiedot-laskentataulukoihin. Projektin summat -laskentataulukon Pivot-taulukko päivittyy automaattisesti."]
[null,"Kirjoita yrityksen nimi Parametrit-laskentataulukkoon. Se päivitetään automaattisesti myös muihin laskentataulukoihin."]
[null,"Huomautus:  "]
[null,"TAPAHTUMASUUNNITTELU-työkirjan kunkin laskentataulukon sarakkeessa A annetaan lisäohjeita. Kyseiset tekstit on piilotettu tarkoituksella. Jos haluat poistaa tekstin, valitse sarake A ja valitse sitten POISTA. Jos haluat tuoda tekstin näkyviin, valitse sarake A ja muuta sitten fontin väriä."]
[null,"Jos haluat lisätietoja laskentataulukossa olevista taulukoista, paina taulukossa VAIHTO ja sitten F10, valitse TAULUKKO-vaihtoehto ja valitse sitten VAIHTOEHTOINEN TEKSTI."]

{"sheet":"PROJEKTIPARAMETRIT","index":1,"n_rows":19,"n_cols":9,"rows_kept":19,"merged":[[23,1,42,3]]}
[null,"Yrityksen nimi"]
[null,"Tapahtumanhallintaprojektin seuranta"]
[null,{"$f":"B1&\" Luottamuksellinen\"","v":"Yrityksen nimi Luottamuksellinen"}]
[null,"Varjostetut solut lasketaan puolestasi. Sinun ei tarvitse kirjoittaa niihin mitään."]
[null,"PROJEKTIN TYYPPI","ASIAKKUUSPÄÄLLIKKÖ","PROJEKTIPÄÄLLIKKÖ","STRATEGIAPÄÄLLIKKÖ","ULKOASUN SUUNNITTELIJA","TAPAHTUMAN HENKILÖSTÖ","JÄRJESTELMÄN-VALVONTA","Summa"]
[null,"Tapahtumastrategian kehitys",{"v":0.2,"d":"20%"},{"v":0.1,"d":"10%"},{"v":0.6,"d":"60%"},{"v":0,"d":"0%"},{"v":0,"d":"0%"},{"v":0.1,"d":"10%"},{"$f":"SUM(Parametrit[[#This Row],[ASIAKKUUSPÄÄLLIKKÖ]:[JÄRJESTELMÄN-VALVONTA]])","v":{"v":1,"d":"100%"}}]
[null,"Tapahtuman suunnittelu",{"v":0.2,"d":"20%"},{"v":0.5,"d":"50%"},{"v":0.1,"d":"10%"},{"v":0.1,"d":"10%"},{"v":0,"d":"0%"},{"v":0.1,"d":"10%"},{"$f":"SUM(Parametrit[[#This Row],[ASIAKKUUSPÄÄLLIKKÖ]:[JÄRJESTELMÄN-VALVONTA]])","v":{"v":0.9999999999999999,"d":"100%"}}]
[null,"Tapahtuman ulkoasu",{"v":0.2,"d":"20%"},{"v":0.2,"d":"20%"},{"v":0,"d":"0%"},{"v":0.5,"d":"50%"},{"v":0,"d":"0%"},{"v":0.1,"d":"10%"},{"$f":"SUM(Parametrit[[#This Row],[ASIAKKUUSPÄÄLLIKKÖ]:[JÄRJESTELMÄN-VALVONTA]])","v":{"v":1,"d":"100%"}}]
[null,"Tapahtuman logistiikka",{"v":0.2,"d":"20%"},{"v":0.6,"d":"60%"},{"v":0,"d":"0%"},{"v":0,"d":"0%"},{"v":0.1,"d":"10%"},{"v":0.1,"d":"10%"},{"$f":"SUM(Parametrit[[#This Row],[ASIAKKUUSPÄÄLLIKKÖ]:[JÄRJESTELMÄN-VALVONTA]])","v":{"v":1,"d":"100%"}}]
[null,"Tapahtuman henkilöstö",{"v":0.2,"d":"20%"},{"v":0.1,"d":"10%"},{"v":0,"d":"0%"},{"v":0,"d":"0%"},{"v":0.6,"d":"60%"},{"v":0.1,"d":"10%"},{"$f":"SUM(Parametrit[[#This Row],[ASIAKKUUSPÄÄLLIKKÖ]:[JÄRJESTELMÄN-VALVONTA]])","v":{"v":1,"d":"100%"}}]
[null,"Tapahtuman arviointi",{"v":0.2,"d":"20%"},{"v":0.2,"d":"20%"},{"v":0.2,"d":"20%"},{"v":0.2,"d":"20%"},{"v":0,"d":"0%"},{"v":0.2,"d":"20%"},{"$f":"SUM(Parametrit[[#This Row],[ASIAKKUUSPÄÄLLIKKÖ]:[JÄRJESTELMÄN-VALVONTA]])","v":{"v":1,"d":"100%"}}]
[null,"Yhdistetyt hinnat",{"v":180,"d":"180 €"},{"v":120,"d":"120 €"},{"v":150,"d":"150 €"},{"v":100,"d":"100 €"},{"v":80,"d":"80 €"},{"v":60,"d":"60 €"}]
[]
[{"$nulls":5},"Pylväskaavio, jossa näkyvät arvioidut ja toteutuneet työtunnit, on tässä solussa."]
[null,null,"ASIAKKUUSPÄÄLLIKKÖ","PROJEKTIPÄÄLLIKKÖ","STRATEGIAPÄÄLLIKKÖ","ULKOASUN SUUNNITTELIJA","TAPAHTUMAN HENKILÖSTÖ","JÄRJESTELMÄNVALVONTA"]
[null,"ARVIOIDUT KUSTANNUKSET",{"$f":"SUBTOTAL(109,Projektin_tiedot[ASIAKKUUSPÄÄLLIKKÖ])","v":{"v":54000,"d":"54,000.00 €"}},{"$f":"SUBTOTAL(109,Projektin_tiedot[PROJEKTIPÄÄLLIKKÖ])","v":{"v":52200,"d":"52,200.00 €"}},{"$f":"SUBTOTAL(109,Projektin_tiedot[STRATEGIAPÄÄLLIKKÖ])","v":{"v":24000,"d":"24,000.00 €"}},{"$f":"SUBTOTAL(109,Projektin_tiedot[ULKOASUN SUUNNITTELIJA])","v":{"v":29000,"d":"29,000.00 €"}},{"$f":"SUBTOTAL(109,Projektin_tiedot[TAPAHTUMAN HENKILÖSTÖ])","v":{"v":13200,"d":"13,200.00 €"}},{"$f":"SUBTOTAL(109,Projektin_tiedot[JÄRJESTELMÄN-VALVONTA])","v":{"v":9000,"d":"9,000.00 €"}}]
[null,"TOTEUTUNEET KUSTANNUKSET",{"$f":"SUBTOTAL(109,Projektin_tiedot[[ASIAKKUUSPÄÄLLIKKÖ ]])","v":{"v":54360,"d":"54,360.00 €"}},{"$f":"SUBTOTAL(109,Projektin_tiedot[[PROJEKTIPÄÄLLIKKÖ ]])","v":{"v":51540,"d":"51,540.00 €"}},{"$f":"SUBTOTAL(109,Projektin_tiedot[[STRATEGIAPÄÄLLIKKÖ ]])","v":{"v":25650,"d":"25,650.00 €"}},{"$f":"SUBTOTAL(109,Projektin_tiedot[[ULKOASUN SUUNNITTELIJA ]])","v":{"v":28900,"d":"28,900.00 €"}},{"$f":"SUBTOTAL(109,Projektin_tiedot[[TAPAHTUMAN HENKILÖSTÖ ]])","v":{"v":13400,"d":"13,400.00 €"}},{"$f":"SUBTOTAL(109,Projektin_tiedot[[JÄRJESTELMÄNVALVONTA ]])","v":{"v":9060,"d":"9,060.00 €"}}]
[null,"ARVIOIDUT TUNNIT",{"$f":"C16/$C$12","v":{"v":300,"d":"300.00"}},{"$f":"D16/$C$12","v":{"v":290,"d":"290.00"}},{"v":133.33333333333334,"d":"133.33"},{"v":161.11111111111111,"d":"161.11"},{"v":73.33333333333333,"d":"73.33"},{"v":50,"d":"50.00"}]
[null,"TOTEUTUNEET TUNNIT",{"$f":"C17/$C$12","v":{"v":302,"d":"302.00"}},{"$f":"D17/$C$12","v":{"v":286.3333333333333,"d":"286.33"}},{"$f":"E17/$C$12","v":{"v":142.5,"d":"142.50"}},{"$f":"F17/$C$12","v":{"v":160.55555555555554,"d":"160.56"}},{"$f":"G17/$C$12","v":{"v":74.44444444444444,"d":"74.44"}},{"$f":"H17/$C$12","v":{"v":50.333333333333336,"d":"50.33"}}]

{"sheet":"PROJEKTIN TIEDOT","index":2,"n_rows":10,"n_cols":23,"rows_kept":10}
[null,{"$f":"PROJEKTIPARAMETRIT!B1","v":"Yrityksen nimi"}]
[null,"Tapahtumanhallintaprojektin seuranta"]
[null,{"$f":"PROJEKTIPARAMETRIT!B3","v":"Yrityksen nimi Luottamuksellinen"}]
["Kirjoita tiedot Projektin tiedot -taulukkoon alkaen oikealla olevasta solusta.\nTIEDOKSI\nJos haluat lisätä rivin oikealla olevaan taulukkoon, valitse taulukon tekstiosassa (ei summat-rivillä) oikean alanurkan solu ja paina SARKAINTA, tai paina VAIHTO+F10 taulukossa, johon haluat lisätä rivin, ja valitse sitten Lisää | Taulukon rivejä yläpuolelle/alapuolelle.\nVarmista, että poistat kaikki käyttämättömät rivit. PROJEKTIN SUMMAT -Pivot-taulukko käyttää taulukon kaikkia soluja, joten tulokset olisivat muuten virheellisiä.","PROJEKTIN NIMI","PROJEKTIN TYYPPI","ARVIOITU ALOITUSAIKA","ARVIOITU PÄÄTTYMISAIKA","TOTEUTUNUT ALOITUSAIKA","TOTEUTUNUT PÄÄTTYMISAIKA","ARVIOITU TYÖMÄÄRÄ","TOTEUTUNUT TYÖMÄÄRÄ","ARVIOITU KESTO","TOTEUTUNUT KESTO","ASIAKKUUSPÄÄLLIKKÖ","PROJEKTIPÄÄLLIKKÖ","STRATEGIAPÄÄLLIKKÖ","ULKOASUN SUUNNITTELIJA","TAPAHTUMAN HENKILÖSTÖ","JÄRJESTELMÄN-VALVONTA","ASIAKKUUSPÄÄLLIKKÖ ","PROJEKTIPÄÄLLIKKÖ ","STRATEGIAPÄÄLLIKKÖ ","ULKOASUN SUUNNITTELIJA ","TAPAHTUMAN HENKILÖSTÖ ","JÄRJESTELMÄNVALVONTA "]
[null,"Projekti 1","Tapahtumastrategian kehitys",{"$f":"DATE(YEAR(TODAY()),6,9)","v":"2022-06-09"},{"$f":" DATE(YEAR(TODAY()),8,7)","v":"2022-08-07"},{"$f":"DATE(YEAR(TODAY()),6,29)","v":"2022-06-29"},{"$f":"DATE(YEAR(TODAY()),9,3)","v":"2022-09-03"},200,220,{"$f":"DAYS360(Projektin_tiedot[[#This Row],[ARVIOITU ALOITUSAIKA]],Projektin_tiedot[[#This Row],[ARVIOITU PÄÄTTYMISAIKA]],FALSE)","v":58},{"$f":"DAYS360(Projektin_tiedot[[#This Row],[TOTEUTUNUT ALOITUSAIKA]],Projektin_tiedot[[#This Row],[TOTEUTUNUT PÄÄTTYMISAIKA]],FALSE)","v":64},{"$f":"INDEX(Parametrit[],MATCH(Projektin_tiedot[[#This Row],[PROJEKTIN TYYPPI]],Parametrit[PROJEKTIN TYYPPI],0),MATCH(Projektin_tiedot[[#Headers],[ASIAKKUUSPÄÄLLIKKÖ]],Parametrit[#Headers],0))*INDEX(PROJEKTIPARAMETRIT!$B$12:$H$12,1,MATCH(Projektin_tiedot[[#Headers],[ASIAKKUUSPÄÄLLIKKÖ]],Parametrit[#Headers],0))*Projektin_tiedot[[#This Row],[ARVIOITU TYÖMÄÄRÄ]]","v":{"v":7200,"d":"7,200 €"}},{"$f":"INDEX(Parametrit[],MATCH(Projektin_tiedot[[#This Row],[PROJEKTIN TYYPPI]],Parametrit[PROJEKTIN TYYPPI],0),MATCH(Projektin_tiedot[[#Headers],[PROJEKTIPÄÄLLIKKÖ]],Parametrit[#Headers],0))*INDEX(PROJEKTIPARAMETRIT!$B$12:$H$12,1,MATCH(Projektin_tiedot[[#Headers],[PROJEKTIPÄÄLLIKKÖ]],Parametrit[#Headers],0))*Projektin_tiedot[[#This Row],[ARVIOITU TYÖMÄÄRÄ]]","v":{"v":2400,"d":"2,400 €"}},{"$f":"INDEX(Parametrit[],MATCH(Projektin_tiedot[[#This Row],[PROJEKTIN TYYPPI]],Parametrit[PROJEKTIN TYYPPI],0),MATCH(Projektin_tiedot[[#Headers],[STRATEGIAPÄÄLLIKKÖ]],Parametrit[#Headers],0))*INDEX(PROJEKTIPARAMETRIT!$B$12:$H$12,1,MATCH(Projektin_tiedot[[#Headers],[STRATEGIAPÄÄLLIKKÖ]],Parametrit[#Headers],0))*Projektin_tiedot[[#This Row],[ARVIOITU TYÖMÄÄRÄ]]","v":{"v":18000,"d":"18,000 €"}},{"$f":"INDEX(Parametrit[],MATCH(Projektin_tiedot[[#This Row],[PROJEKTIN TYYPPI]],Parametrit[PROJEKTIN TYYPPI],0),MATCH(Projektin_tiedot[[#Headers],[ULKOASUN SUUNNITTELIJA]],Parametrit[#Headers],0))*INDEX(PROJEKTIPARAMETRIT!$B$12:$H$12,1,MATCH(Projektin_tiedot[[#Headers],[ULKOASUN SUUNNITTELIJA]],Parametrit[#Headers],0))*Projektin_tiedot[[#This Row],[ARVIOITU TYÖMÄÄRÄ]]","v":{"v":0,"d":"0 €"}},{"$f":"INDEX(Parametrit[],MATCH(Projektin_tiedot[[#This Row],[PROJEKTIN TYYPPI]],Parametrit[PROJEKTIN TYYPPI],0),MATCH(Projektin_tiedot[[#Headers],[TAPAHTUMAN HENKILÖSTÖ]],Parametrit[#Headers],0))*INDEX(PROJEKTIPARAMETRIT!$B$12:$H$12,1,MATCH(Projektin_tiedot[[#Headers],[TAPAHTUMAN HENKILÖSTÖ]],Parametrit[#Headers],0))*Projektin_tiedot[[#This Row],[ARVIOITU TYÖMÄÄRÄ]]","v":{"v":0,"d":"0 €"}},{"$f":"INDEX(Parametrit[],MATCH(Projektin_tiedot[[#This Row],[PROJEKTIN TYYPPI]],Parametrit[PROJEKTIN TYYPPI],0),MATCH(Projektin_tiedot[[#Headers],[JÄRJESTELMÄN-VALVONTA]],Parametrit[#Headers],0))*INDEX(PROJEKTIPARAMETRIT!$B$12:$H$12,1,MATCH(Projektin_tiedot[[#Headers],[JÄRJESTELMÄN-VALVONTA]],Parametrit[#Headers],0))*Projektin_tiedot[[#This Row],[ARVIOITU TYÖMÄÄRÄ]]","v":{"v":1200,"d":"1,200 €"}},{"$f":"INDEX(Parametrit[],MATCH(Projektin_tiedot[[#This Row],[PROJEKTIN TYYPPI]],Parametrit[PROJEKTIN TYYPPI],0),MATCH(Projektin_tiedot[[#Headers],[ASIAKKUUSPÄÄLLIKKÖ]],Parametrit[#Headers],0))*INDEX(PROJEKTIPARAMETRIT!$B$12:$H$12,1,MATCH(Projektin_tiedot[[#Headers],[ASIAKKUUSPÄÄLLIKKÖ]],Parametrit[#Headers],0))*Projektin_tiedot[[#This Row],[TOTEUTUNUT TYÖMÄÄRÄ]]","v":{"v":7920,"d":"7,920 €"}},{"$f":"INDEX(Parametrit[],MATCH(Projektin_tiedot[[#This Row],[PROJEKTIN TYYPPI]],Parametrit[PROJEKTIN TYYPPI],0),MATCH(Projektin_tiedot[[#Headers],[PROJEKTIPÄÄLLIKKÖ]],Parametrit[#Headers],0))*INDEX(PROJEKTIPARAMETRIT!$B$12:$H$12,1,MATCH(Projektin_tiedot[[#Headers],[PROJEKTIPÄÄLLIKKÖ]],Parametrit[#Headers],0))*Projektin_tiedot[[#This Row],[TOTEUTUNUT TYÖMÄÄRÄ]]","v":{"v":2640,"d":"2,640 €"}},{"$f":"INDEX(Parametrit[],MATCH(Projektin_tiedot[[#This Row],[PROJEKTIN TYYPPI]],Parametrit[PROJEKTIN TYYPPI],0),MATCH(Projektin_tiedot[[#Headers],[STRATEGIAPÄÄLLIKKÖ]],Parametrit[#Headers],0))*INDEX(PROJEKTIPARAMETRIT!$B$12:$H$12,1,MATCH(Projektin_tiedot[[#Headers],[STRATEGIAPÄÄLLIKKÖ]],Parametrit[#Headers],0))*Projektin_tiedot[[#This Row],[TOTEUTUNUT TYÖMÄÄRÄ]]","v":{"v":19800,"d":"19,800 €"}},{"$f":"INDEX(Parametrit[],MATCH(Projektin_tiedot[[#This Row],[PROJEKTIN TYYPPI]],Parametrit[PROJEKTIN TYYPPI],0),MATCH(Projektin_tiedot[[#Headers],[ULKOASUN SUUNNITTELIJA]],Parametrit[#Headers],0))*INDEX(PROJEKTIPARAMETRIT!$B$12:$H$12,1,MATCH(Projektin_tiedot[[#Headers],[ULKOASUN SUUNNITTELIJA]],Parametrit[#Headers],0))*Projektin_tiedot[[#This Row],[TOTEUTUNUT TYÖMÄÄRÄ]]","v":{"v":0,"d":"0 €"}},{"$f":"INDEX(Parametrit[],MATCH(Projektin_tiedot[[#This Row],[PROJEKTIN TYYPPI]],Parametrit[PROJEKTIN TYYPPI],0),MATCH(Projektin_tiedot[[#Headers],[TAPAHTUMAN HENKILÖSTÖ]],Parametrit[#Headers],0))*INDEX(PROJEKTIPARAMETRIT!$B$12:$H$12,1,MATCH(Projektin_tiedot[[#Headers],[TAPAHTUMAN HENKILÖSTÖ]],Parametrit[#Headers],0))*Projektin_tiedot[[#This Row],[TOTEUTUNUT TYÖMÄÄRÄ]]","v":{"v":0,"d":"0 €"}},{"$f":"INDEX(Parametrit[],MATCH(Projektin_tiedot[[#This Row],[PROJEKTIN TYYPPI]],Parametrit[PROJEKTIN TYYPPI],0),MATCH(Projektin_tiedot[[#Headers],[JÄRJESTELMÄN-VALVONTA]],Parametrit[#Headers],0))*INDEX(PROJEKTIPARAMETRIT!$B$12:$H$12,1,MATCH(Projektin_tiedot[[#Headers],[JÄRJESTELMÄN-VALVONTA]],Parametrit[#Headers],0))*Projektin_tiedot[[#This Row],[TOTEUTUNUT TYÖMÄÄRÄ]]","v":{"v":1320,"d":"1,320 €"}}]
[null,"Projekti 2","Tapahtuman suunnittelu",{"$f":"DATE(YEAR(TODAY())+1,6,25)","v":"2023-06-25"},{"$f":"DATE(YEAR(TODAY())+1,7,27)","v":"2023-07-27"},{"$f":"DATE(YEAR(TODAY()),7,15)","v":"2022-07-15"},{"$f":"DATE(YEAR(TODAY())+1,8,25)","v":"2023-08-25"},400,390,{"$f":"DAYS360(Projektin_tiedot[[#This Row],[ARVIOITU ALOITUSAIKA]],Projektin_tiedot[[#This Row],[ARVIOITU PÄÄTTYMISAIKA]],FALSE)","v":32},{"$f":"DAYS360(Projektin_tiedot[[#This Row],[TOTEUTUNUT ALOITUSAIKA]],Projektin_tiedot[[#This Row],[TOTEUTUNUT PÄÄTTYMISAIKA]],FALSE)","v":400},{"$f":"INDEX(Parametrit[],MATCH(Projektin_tiedot[[#This Row],[PROJEKTIN TYYPPI]],Parametrit[PROJEKTIN TYYPPI],0),MATCH(Projektin_tiedot[[#Headers],[ASIAKKUUSPÄÄLLIKKÖ]],Parametrit[#Headers],0))*INDEX(PROJEKTIPARAMETRIT!$B$12:$H$12,1,MATCH(Projektin_tiedot[[#Headers],[ASIAKKUUSPÄÄLLIKKÖ]],Parametrit[#Headers],0))*Projektin_tiedot[[#This Row],[ARVIOITU TYÖMÄÄRÄ]]","v":{"v":14400,"d":"14,400 €"}},{"$f":"INDEX(Parametrit[],MATCH(Projektin_tiedot[[#This Row],[PROJEKTIN TYYPPI]],Parametrit[PROJEKTIN TYYPPI],0),MATCH(Projektin_tiedot[[#Headers],[PROJEKTIPÄÄLLIKKÖ]],Parametrit[#Headers],0))*INDEX(PROJEKTIPARAMETRIT!$B$12:$H$12,1,MATCH(Projektin_tiedot[[#Headers],[PROJEKTIPÄÄLLIKKÖ]],Parametrit[#Headers],0))*Projektin_tiedot[[#This Row],[ARVIOITU TYÖMÄÄRÄ]]","v":{"v":24000,"d":"24,000 €"}},{"$f":"INDEX(Parametrit[],MATCH(Projektin_tiedot[[#This Row],[PROJEKTIN TYYPPI]],Parametrit[PROJEKTIN TYYPPI],0),MATCH(Projektin_tiedot[[#Headers],[STRATEGIAPÄÄLLIKKÖ]],Parametrit[#Headers],0))*INDEX(PROJEKTIPARAMETRIT!$B$12:$H$12,1,MATCH(Projektin_tiedot[[#Headers],[STRATEGIAPÄÄLLIKKÖ]],Parametrit[#Headers],0))*Projektin_tiedot[[#This Row],[ARVIOITU TYÖMÄÄRÄ]]","v":{"v":6000,"d":"6,000 €"}},{"$f":"INDEX(Parametrit[],MATCH(Projektin_tiedot[[#This Row],[PROJEKTIN TYYPPI]],Parametrit[PROJEKTIN TYYPPI],0),MATCH(Projektin_tiedot[[#Headers],[ULKOASUN SUUNNITTELIJA]],Parametrit[#Headers],0))*INDEX(PROJEKTIPARAMETRIT!$B$12:$H$12,1,MATCH(Projektin_tiedot[[#Headers],[ULKOASUN SUUNNITTELIJA]],Parametrit[#Headers],0))*Projektin_tiedot[[#This Row],[ARVIOITU TYÖMÄÄRÄ]]","v":{"v":4000,"d":"4,000 €"}},{"$f":"INDEX(Parametrit[],MATCH(Projektin_tiedot[[#This Row],[PROJEKTIN TYYPPI]],Parametrit[PROJEKTIN TYYPPI],0),MATCH(Projektin_tiedot[[#Headers],[TAPAHTUMAN HENKILÖSTÖ]],Parametrit[#Headers],0))*INDEX(PROJEKTIPARAMETRIT!$B$12:$H$12,1,MATCH(Projektin_tiedot[[#Headers],[TAPAHTUMAN HENKILÖSTÖ]],Parametrit[#Headers],0))*Projektin_tiedot[[#This Row],[ARVIOITU TYÖMÄÄRÄ]]","v":{"v":0,"d":"0 €"}},{"$f":"INDEX(Parametrit[],MATCH(Projektin_tiedot[[#This Row],[PROJEKTIN TYYPPI]],Parametrit[PROJEKTIN TYYPPI],0),MATCH(Projektin_tiedot[[#Headers],[JÄRJESTELMÄN-VALVONTA]],Parametrit[#Headers],0))*INDEX(PROJEKTIPARAMETRIT!$B$12:$H$12,1,MATCH(Projektin_tiedot[[#Headers],[JÄRJESTELMÄN-VALVONTA]],Parametrit[#Headers],0))*Projektin_tiedot[[#This Row],[ARVIOITU TYÖMÄÄRÄ]]","v":{"v":2400,"d":"2,400 €"}},{"$f":"INDEX(Parametrit[],MATCH(Projektin_tiedot[[#This Row],[PROJEKTIN TYYPPI]],Parametrit[PROJEKTIN TYYPPI],0),MATCH(Projektin_tiedot[[#Headers],[ASIAKKUUSPÄÄLLIKKÖ]],Parametrit[#Headers],0))*INDEX(PROJEKTIPARAMETRIT!$B$12:$H$12,1,MATCH(Projektin_tiedot[[#Headers],[ASIAKKUUSPÄÄLLIKKÖ]],Parametrit[#Headers],0))*Projektin_tiedot[[#This Row],[TOTEUTUNUT TYÖMÄÄRÄ]]","v":{"v":14040,"d":"14,040 €"}},{"$f":"INDEX(Parametrit[],MATCH(Projektin_tiedot[[#This Row],[PROJEKTIN TYYPPI]],Parametrit[PROJEKTIN TYYPPI],0),MATCH(Projektin_tiedot[[#Headers],[PROJEKTIPÄÄLLIKKÖ]],Parametrit[#Headers],0))*INDEX(PROJEKTIPARAMETRIT!$B$12:$H$12,1,MATCH(Projektin_tiedot[[#Headers],[PROJEKTIPÄÄLLIKKÖ]],Parametrit[#Headers],0))*Projektin_tiedot[[#This Row],[TOTEUTUNUT TYÖMÄÄRÄ]]","v":{"v":23400,"d":"23,400 €"}},{"$f":"INDEX(Parametrit[],MATCH(Projektin_tiedot[[#This Row],[PROJEKTIN TYYPPI]],Parametrit[PROJEKTIN TYYPPI],0),MATCH(Projektin_tiedot[[#Headers],[STRATEGIAPÄÄLLIKKÖ]],Parametrit[#Headers],0))*INDEX(PROJEKTIPARAMETRIT!$B$12:$H$12,1,MATCH(Projektin_tiedot[[#Headers],[STRATEGIAPÄÄLLIKKÖ]],Parametrit[#Headers],0))*Projektin_tiedot[[#This Row],[TOTEUTUNUT TYÖMÄÄRÄ]]","v":{"v":5850,"d":"5,850 €"}},{"$f":"INDEX(Parametrit[],MATCH(Projektin_tiedot[[#This Row],[PROJEKTIN TYYPPI]],Parametrit[PROJEKTIN TYYPPI],0),MATCH(Projektin_tiedot[[#Headers],[ULKOASUN SUUNNITTELIJA]],Parametrit[#Headers],0))*INDEX(PROJEKTIPARAMETRIT!$B$12:$H$12,1,MATCH(Projektin_tiedot[[#Headers],[ULKOASUN SUUNNITTELIJA]],Parametrit[#Headers],0))*Projektin_tiedot[[#This Row],[TOTEUTUNUT TYÖMÄÄRÄ]]","v":{"v":3900,"d":"3,900 €"}},{"$f":"INDEX(Parametrit[],MATCH(Projektin_tiedot[[#This Row],[PROJEKTIN TYYPPI]],Parametrit[PROJEKTIN TYYPPI],0),MATCH(Projektin_tiedot[[#Headers],[TAPAHTUMAN HENKILÖSTÖ]],Parametrit[#Headers],0))*INDEX(PROJEKTIPARAMETRIT!$B$12:$H$12,1,MATCH(Projektin_tiedot[[#Headers],[TAPAHTUMAN HENKILÖSTÖ]],Parametrit[#Headers],0))*Projektin_tiedot[[#This Row],[TOTEUTUNUT TYÖMÄÄRÄ]]","v":{"v":0,"d":"0 €"}},{"$f":"INDEX(Parametrit[],MATCH(Projektin_tiedot[[#This Row],[PROJEKTIN TYYPPI]],Parametrit[PROJEKTIN TYYPPI],0),MATCH(Projektin_tiedot[[#Headers],[JÄRJESTELMÄN-VALVONTA]],Parametrit[#Headers],0))*INDEX(PROJEKTIPARAMETRIT!$B$12:$H$12,1,MATCH(Projektin_tiedot[[#Headers],[JÄRJESTELMÄN-VALVONTA]],Parametrit[#Headers],0))*Projektin_tiedot[[#This Row],[TOTEUTUNUT TYÖMÄÄRÄ]]","v":{"v":2340,"d":"2,340 €"}}]
[null,"Projekti 3","Tapahtuman ulkoasu",{"$f":"DATE(YEAR(TODAY())+2,7,12)","v":"2024-07-12"},{"$f":"DATE(YEAR(TODAY())+2,9,19)","v":"2024-09-19"},"2025-08-07","2025-10-10",500,500,{"$f":"DAYS360(Projektin_tiedot[[#This Row],[ARVIOITU ALOITUSAIKA]],Projektin_tiedot[[#This Row],[ARVIOITU PÄÄTTYMISAIKA]],FALSE)","v":67},{"$f":"DAYS360(Projektin_tiedot[[#This Row],[TOTEUTUNUT ALOITUSAIKA]],Projektin_tiedot[[#This Row],[TOTEUTUNUT PÄÄTTYMISAIKA]],FALSE)","v":63},{"$f":"INDEX(Parametrit[],MATCH(Projektin_tiedot[[#This Row],[PROJEKTIN TYYPPI]],Parametrit[PROJEKTIN TYYPPI],0),MATCH(Projektin_tiedot[[#Headers],[ASIAKKUUSPÄÄLLIKKÖ]],Parametrit[#Headers],0))*INDEX(PROJEKTIPARAMETRIT!$B$12:$H$12,1,MATCH(Projektin_tiedot[[#Headers],[ASIAKKUUSPÄÄLLIKKÖ]],Parametrit[#Headers],0))*Projektin_tiedot[[#This Row],[ARVIOITU TYÖMÄÄRÄ]]","v":{"v":18000,"d":"18,000 €"}},{"$f":"INDEX(Parametrit[],MATCH(Projektin_tiedot[[#This Row],[PROJEKTIN TYYPPI]],Parametrit[PROJEKTIN TYYPPI],0),MATCH(Projektin_tiedot[[#Headers],[PROJEKTIPÄÄLLIKKÖ]],Parametrit[#Headers],0))*INDEX(PROJEKTIPARAMETRIT!$B$12:$H$12,1,MATCH(Projektin_tiedot[[#Headers],[PROJEKTIPÄÄLLIKKÖ]],Parametrit[#Headers],0))*Projektin_tiedot[[#This Row],[ARVIOITU TYÖMÄÄRÄ]]","v":{"v":12000,"d":"12,000 €"}},{"$f":"INDEX(Parametrit[],MATCH(Projektin_tiedot[[#This Row],[PROJEKTIN TYYPPI]],Parametrit[PROJEKTIN TYYPPI],0),MATCH(Projektin_tiedot[[#Headers],[STRATEGIAPÄÄLLIKKÖ]],Parametrit[#Headers],0))*INDEX(PROJEKTIPARAMETRIT!$B$12:$H$12,1,MATCH(Projektin_tiedot[[#Headers],[STRATEGIAPÄÄLLIKKÖ]],Parametrit[#Headers],0))*Projektin_tiedot[[#This Row],[ARVIOITU TYÖMÄÄRÄ]]","v":{"v":0,"d":"0 €"}},{"$f":"INDEX(Parametrit[],MATCH(Projektin_tiedot[[#This Row],[PROJEKTIN TYYPPI]],Parametrit[PROJEKTIN TYYPPI],0),MATCH(Projektin_tiedot[[#Headers],[ULKOASUN SUUNNITTELIJA]],Parametrit[#Headers],0))*INDEX(PROJEKTIPARAMETRIT!$B$12:$H$12,1,MATCH(Projektin_tiedot[[#Headers],[ULKOASUN SUUNNITTELIJA]],Parametrit[#Headers],0))*Projektin_tiedot[[#This Row],[ARVIOITU TYÖMÄÄRÄ]]","v":{"v":25000,"d":"25,000 €"}},{"$f":"INDEX(Parametrit[],MATCH(Projektin_tiedot[[#This Row],[PROJEKTIN TYYPPI]],Parametrit[PROJEKTIN TYYPPI],0),MATCH(Projektin_tiedot[[#Headers],[TAPAHTUMAN HENKILÖSTÖ]],Parametrit[#Headers],0))*INDEX(PROJEKTIPARAMETRIT!$B$12:$H$12,1,MATCH(Projektin_tiedot[[#Headers],[TAPAHTUMAN HENKILÖSTÖ]],Parametrit[#Headers],0))*Projektin_tiedot[[#This Row],[ARVIOITU TYÖMÄÄRÄ]]","v":{"v":0,"d":"0 €"}},{"$f":"INDEX(Parametrit[],MATCH(Projektin_tiedot[[#This Row],[PROJEKTIN TYYPPI]],Parametrit[PROJEKTIN TYYPPI],0),MATCH(Projektin_tiedot[[#Headers],[JÄRJESTELMÄN-VALVONTA]],Parametrit[#Headers],0))*INDEX(PROJEKTIPARAMETRIT!$B$12:$H$12,1,MATCH(Projektin_tiedot[[#Headers],[JÄRJESTELMÄN-VALVONTA]],Parametrit[#Headers],0))*Projektin_tiedot[[#This Row],[ARVIOITU TYÖMÄÄRÄ]]","v":{"v":3000,"d":"3,000 €"}},{"$f":"INDEX(Parametrit[],MATCH(Projektin_tiedot[[#This Row],[PROJEKTIN TYYPPI]],Parametrit[PROJEKTIN TYYPPI],0),MATCH(Projektin_tiedot[[#Headers],[ASIAKKUUSPÄÄLLIKKÖ]],Parametrit[#Headers],0))*INDEX(PROJEKTIPARAMETRIT!$B$12:$H$12,1,MATCH(Projektin_tiedot[[#Headers],[ASIAKKUUSPÄÄLLIKKÖ]],Parametrit[#Headers],0))*Projektin_tiedot[[#This Row],[TOTEUTUNUT TYÖMÄÄRÄ]]","v":{"v":18000,"d":"18,000 €"}},{"$f":"INDEX(Parametrit[],MATCH(Projektin_tiedot[[#This Row],[PROJEKTIN TYYPPI]],Parametrit[PROJEKTIN TYYPPI],0),MATCH(Projektin_tiedot[[#Headers],[PROJEKTIPÄÄLLIKKÖ]],Parametrit[#Headers],0))*INDEX(PROJEKTIPARAMETRIT!$B$12:$H$12,1,MATCH(Projektin_tiedot[[#Headers],[PROJEKTIPÄÄLLIKKÖ]],Parametrit[#Headers],0))*Projektin_tiedot[[#This Row],[TOTEUTUNUT TYÖMÄÄRÄ]]","v":{"v":12000,"d":"12,000 €"}},{"$f":"INDEX(Parametrit[],MATCH(Projektin_tiedot[[#This Row],[PROJEKTIN TYYPPI]],Parametrit[PROJEKTIN TYYPPI],0),MATCH(Projektin_tiedot[[#Headers],[STRATEGIAPÄÄLLIKKÖ]],Parametrit[#Headers],0))*INDEX(PROJEKTIPARAMETRIT!$B$12:$H$12,1,MATCH(Projektin_tiedot[[#Headers],[STRATEGIAPÄÄLLIKKÖ]],Parametrit[#Headers],0))*Projektin_tiedot[[#This Row],[TOTEUTUNUT TYÖMÄÄRÄ]]","v":{"v":0,"d":"0 €"}},{"$f":"INDEX(Parametrit[],MATCH(Projektin_tiedot[[#This Row],[PROJEKTIN TYYPPI]],Parametrit[PROJEKTIN TYYPPI],0),MATCH(Projektin_tiedot[[#Headers],[ULKOASUN SUUNNITTELIJA]],Parametrit[#Headers],0))*INDEX(PROJEKTIPARAMETRIT!$B$12:$H$12,1,MATCH(Projektin_tiedot[[#Headers],[ULKOASUN SUUNNITTELIJA]],Parametrit[#Headers],0))*Projektin_tiedot[[#This Row],[TOTEUTUNUT TYÖMÄÄRÄ]]","v":{"v":25000,"d":"25,000 €"}},{"$f":"INDEX(Parametrit[],MATCH(Projektin_tiedot[[#This Row],[PROJEKTIN TYYPPI]],Parametrit[PROJEKTIN TYYPPI],0),MATCH(Projektin_tiedot[[#Headers],[TAPAHTUMAN HENKILÖSTÖ]],Parametrit[#Headers],0))*INDEX(PROJEKTIPARAMETRIT!$B$12:$H$12,1,MATCH(Projektin_tiedot[[#Headers],[TAPAHTUMAN HENKILÖSTÖ]],Parametrit[#Headers],0))*Projektin_tiedot[[#This Row],[TOTEUTUNUT TYÖMÄÄRÄ]]","v":{"v":0,"d":"0 €"}},{"$f":"INDEX(Parametrit[],MATCH(Projektin_tiedot[[#This Row],[PROJEKTIN TYYPPI]],Parametrit[PROJEKTIN TYYPPI],0),MATCH(Projektin_tiedot[[#Headers],[JÄRJESTELMÄN-VALVONTA]],Parametrit[#Headers],0))*INDEX(PROJEKTIPARAMETRIT!$B$12:$H$12,1,MATCH(Projektin_tiedot[[#Headers],[JÄRJESTELMÄN-VALVONTA]],Parametrit[#Headers],0))*Projektin_tiedot[[#This Row],[TOTEUTUNUT TYÖMÄÄRÄ]]","v":{"v":3000,"d":"3,000 €"}}]
[null,"Projekti 4","Tapahtuman logistiikka",{"$f":"DATE(YEAR(TODAY())+3,7,30)","v":"2025-07-30"},{"$f":"DATE(YEAR(TODAY())+3,9,28)","v":"2025-09-28"},{"$f":"DATE(YEAR(TODAY())+3,9,14)","v":"2025-09-14"},{"$f":"DATE(YEAR(TODAY())+3,11,13)","v":"2025-11-13"},150,145,{"$f":"DAYS360(Projektin_tiedot[[#This Row],[ARVIOITU ALOITUSAIKA]],Projektin_tiedot[[#This Row],[ARVIOITU PÄÄTTYMISAIKA]],FALSE)","v":58},{"$f":"DAYS360(Projektin_tiedot[[#This Row],[TOTEUTUNUT ALOITUSAIKA]],Projektin_tiedot[[#This Row],[TOTEUTUNUT PÄÄTTYMISAIKA]],FALSE)","v":59},{"$f":"INDEX(Parametrit[],MATCH(Projektin_tiedot[[#This Row],[PROJEKTIN TYYPPI]],Parametrit[PROJEKTIN TYYPPI],0),MATCH(Projektin_tiedot[[#Headers],[ASIAKKUUSPÄÄLLIKKÖ]],Parametrit[#Headers],0))*INDEX(PROJEKTIPARAMETRIT!$B$12:$H$12,1,MATCH(Projektin_tiedot[[#Headers],[ASIAKKUUSPÄÄLLIKKÖ]],Parametrit[#Headers],0))*Projektin_tiedot[[#This Row],[ARVIOITU TYÖMÄÄRÄ]]","v":{"v":5400,"d":"5,400 €"}},{"$f":"INDEX(Parametrit[],MATCH(Projektin_tiedot[[#This Row],[PROJEKTIN TYYPPI]],Parametrit[PROJEKTIN TYYPPI],0),MATCH(Projektin_tiedot[[#Headers],[PROJEKTIPÄÄLLIKKÖ]],Parametrit[#Headers],0))*INDEX(PROJEKTIPARAMETRIT!$B$12:$H$12,1,MATCH(Projektin_tiedot[[#Headers],[PROJEKTIPÄÄLLIKKÖ]],Parametrit[#Headers],0))*Projektin_tiedot[[#This Row],[ARVIOITU TYÖMÄÄRÄ]]","v":{"v":10800,"d":"10,800 €"}},{"$f":"INDEX(Parametrit[],MATCH(Projektin_tiedot[[#This Row],[PROJEKTIN TYYPPI]],Parametrit[PROJEKTIN TYYPPI],0),MATCH(Projektin_tiedot[[#Headers],[STRATEGIAPÄÄLLIKKÖ]],Parametrit[#Headers],0))*INDEX(PROJEKTIPARAMETRIT!$B$12:$H$12,1,MATCH(Projektin_tiedot[[#Headers],[STRATEGIAPÄÄLLIKKÖ]],Parametrit[#Headers],0))*Projektin_tiedot[[#This Row],[ARVIOITU TYÖMÄÄRÄ]]","v":{"v":0,"d":"0 €"}},{"$f":"INDEX(Parametrit[],MATCH(Projektin_tiedot[[#This Row],[PROJEKTIN TYYPPI]],Parametrit[PROJEKTIN TYYPPI],0),MATCH(Projektin_tiedot[[#Headers],[ULKOASUN SUUNNITTELIJA]],Parametrit[#Headers],0))*INDEX(PROJEKTIPARAMETRIT!$B$12:$H$12,1,MATCH(Projektin_tiedot[[#Headers],[ULKOASUN SUUNNITTELIJA]],Parametrit[#Headers],0))*Projektin_tiedot[[#This Row],[ARVIOITU TYÖMÄÄRÄ]]","v":{"v":0,"d":"0 €"}},{"$f":"INDEX(Parametrit[],MATCH(Projektin_tiedot[[#This Row],[PROJEKTIN TYYPPI]],Parametrit[PROJEKTIN TYYPPI],0),MATCH(Projektin_tiedot[[#Headers],[TAPAHTUMAN HENKILÖSTÖ]],Parametrit[#Headers],0))*INDEX(PROJEKTIPARAMETRIT!$B$12:$H$12,1,MATCH(Projektin_tiedot[[#Headers],[TAPAHTUMAN HENKILÖSTÖ]],Parametrit[#Headers],0))*Projektin_tiedot[[#This Row],[ARVIOITU TYÖMÄÄRÄ]]","v":{"v":1200,"d":"1,200 €"}},{"$f":"INDEX(Parametrit[],MATCH(Projektin_tiedot[[#This Row],[PROJEKTIN TYYPPI]],Parametrit[PROJEKTIN TYYPPI],0),MATCH(Projektin_tiedot[[#Headers],[JÄRJESTELMÄN-VALVONTA]],Parametrit[#Headers],0))*INDEX(PROJEKTIPARAMETRIT!$B$12:$H$12,1,MATCH(Projektin_tiedot[[#Headers],[JÄRJESTELMÄN-VALVONTA]],Parametrit[#Headers],0))*Projektin_tiedot[[#This Row],[ARVIOITU TYÖMÄÄRÄ]]","v":{"v":900,"d":"900 €"}},{"$f":"INDEX(Parametrit[],MATCH(Projektin_tiedot[[#This Row],[PROJEKTIN TYYPPI]],Parametrit[PROJEKTIN TYYPPI],0),MATCH(Projektin_tiedot[[#Headers],[ASIAKKUUSPÄÄLLIKKÖ]],Parametrit[#Headers],0))*INDEX(PROJEKTIPARAMETRIT!$B$12:$H$12,1,MATCH(Projektin_tiedot[[#Headers],[ASIAKKUUSPÄÄLLIKKÖ]],Parametrit[#Headers],0))*Projektin_tiedot[[#This Row],[TOTEUTUNUT TYÖMÄÄRÄ]]","v":{"v":5220,"d":"5,220 €"}},{"$f":"INDEX(Parametrit[],MATCH(Projektin_tiedot[[#This Row],[PROJEKTIN TYYPPI]],Parametrit[PROJEKTIN TYYPPI],0),MATCH(Projektin_tiedot[[#Headers],[PROJEKTIPÄÄLLIKKÖ]],Parametrit[#Headers],0))*INDEX(PROJEKTIPARAMETRIT!$B$12:$H$12,1,MATCH(Projektin_tiedot[[#Headers],[PROJEKTIPÄÄLLIKKÖ]],Parametrit[#Headers],0))*Projektin_tiedot[[#This Row],[TOTEUTUNUT TYÖMÄÄRÄ]]","v":{"v":10440,"d":"10,440 €"}},{"$f":"INDEX(Parametrit[],MATCH(Projektin_tiedot[[#This Row],[PROJEKTIN TYYPPI]],Parametrit[PROJEKTIN TYYPPI],0),MATCH(Projektin_tiedot[[#Headers],[STRATEGIAPÄÄLLIKKÖ]],Parametrit[#Headers],0))*INDEX(PROJEKTIPARAMETRIT!$B$12:$H$12,1,MATCH(Projektin_tiedot[[#Headers],[STRATEGIAPÄÄLLIKKÖ]],Parametrit[#Headers],0))*Projektin_tiedot[[#This Row],[TOTEUTUNUT TYÖMÄÄRÄ]]","v":{"v":0,"d":"0 €"}},{"$f":"INDEX(Parametrit[],MATCH(Projektin_tiedot[[#This Row],[PROJEKTIN TYYPPI]],Parametrit[PROJEKTIN TYYPPI],0),MATCH(Projektin_tiedot[[#Headers],[ULKOASUN SUUNNITTELIJA]],Parametrit[#Headers],0))*INDEX(PROJEKTIPARAMETRIT!$B$12:$H$12,1,MATCH(Projektin_tiedot[[#Headers],[ULKOASUN SUUNNITTELIJA]],Parametrit[#Headers],0))*Projektin_tiedot[[#This Row],[TOTEUTUNUT TYÖMÄÄRÄ]]","v":{"v":0,"d":"0 €"}},{"$f":"INDEX(Parametrit[],MATCH(Projektin_tiedot[[#This Row],[PROJEKTIN TYYPPI]],Parametrit[PROJEKTIN TYYPPI],0),MATCH(Projektin_tiedot[[#Headers],[TAPAHTUMAN HENKILÖSTÖ]],Parametrit[#Headers],0))*INDEX(PROJEKTIPARAMETRIT!$B$12:$H$12,1,MATCH(Projektin_tiedot[[#Headers],[TAPAHTUMAN HENKILÖSTÖ]],Parametrit[#Headers],0))*Projektin_tiedot[[#This Row],[TOTEUTUNUT TYÖMÄÄRÄ]]","v":{"v":1160,"d":"1,160 €"}},{"$f":"INDEX(Parametrit[],MATCH(Projektin_tiedot[[#This Row],[PROJEKTIN TYYPPI]],Parametrit[PROJEKTIN TYYPPI],0),MATCH(Projektin_tiedot[[#Headers],[JÄRJESTELMÄN-VALVONTA]],Parametrit[#Headers],0))*INDEX(PROJEKTIPARAMETRIT!$B$12:$H$12,1,MATCH(Projektin_tiedot[[#Headers],[JÄRJESTELMÄN-VALVONTA]],Parametrit[#Headers],0))*Projektin_tiedot[[#This Row],[TOTEUTUNUT TYÖMÄÄRÄ]]","v":{"v":870,"d":"870 €"}}]
[null,"Projekti 5","Tapahtuman henkilöstö",{"$f":"DATE(YEAR(TODAY())+4,8,11)","v":"2026-08-11"},{"$f":"DATE(YEAR(TODAY())+4,8,21)","v":"2026-08-21"},{"$f":"DATE(YEAR(TODAY())+4,9,14)","v":"2026-09-14"},{"$f":"DATE(YEAR(TODAY())+4,9,25)","v":"2026-09-25"},250,255,{"$f":"DAYS360(Projektin_tiedot[[#This Row],[ARVIOITU ALOITUSAIKA]],Projektin_tiedot[[#This Row],[ARVIOITU PÄÄTTYMISAIKA]],FALSE)","v":10},{"$f":"DAYS360(Projektin_tiedot[[#This Row],[TOTEUTUNUT ALOITUSAIKA]],Projektin_tiedot[[#This Row],[TOTEUTUNUT PÄÄTTYMISAIKA]],FALSE)","v":11},{"$f":"INDEX(Parametrit[],MATCH(Projektin_tiedot[[#This Row],[PROJEKTIN TYYPPI]],Parametrit[PROJEKTIN TYYPPI],0),MATCH(Projektin_tiedot[[#Headers],[ASIAKKUUSPÄÄLLIKKÖ]],Parametrit[#Headers],0))*INDEX(PROJEKTIPARAMETRIT!$B$12:$H$12,1,MATCH(Projektin_tiedot[[#Headers],[ASIAKKUUSPÄÄLLIKKÖ]],Parametrit[#Headers],0))*Projektin_tiedot[[#This Row],[ARVIOITU TYÖMÄÄRÄ]]","v":{"v":9000,"d":"9,000 €"}},{"$f":"INDEX(Parametrit[],MATCH(Projektin_tiedot[[#This Row],[PROJEKTIN TYYPPI]],Parametrit[PROJEKTIN TYYPPI],0),MATCH(Projektin_tiedot[[#Headers],[PROJEKTIPÄÄLLIKKÖ]],Parametrit[#Headers],0))*INDEX(PROJEKTIPARAMETRIT!$B$12:$H$12,1,MATCH(Projektin_tiedot[[#Headers],[PROJEKTIPÄÄLLIKKÖ]],Parametrit[#Headers],0))*Projektin_tiedot[[#This Row],[ARVIOITU TYÖMÄÄRÄ]]","v":{"v":3000,"d":"3,000 €"}},{"$f":"INDEX(Parametrit[],MATCH(Projektin_tiedot[[#This Row],[PROJEKTIN TYYPPI]],Parametrit[PROJEKTIN TYYPPI],0),MATCH(Projektin_tiedot[[#Headers],[STRATEGIAPÄÄLLIKKÖ]],Parametrit[#Headers],0))*INDEX(PROJEKTIPARAMETRIT!$B$12:$H$12,1,MATCH(Projektin_tiedot[[#Headers],[STRATEGIAPÄÄLLIKKÖ]],Parametrit[#Headers],0))*Projektin_tiedot[[#This Row],[ARVIOITU TYÖMÄÄRÄ]]","v":{"v":0,"d":"0 €"}},{"$f":"INDEX(Parametrit[],MATCH(Projektin_tiedot[[#This Row],[PROJEKTIN TYYPPI]],Parametrit[PROJEKTIN TYYPPI],0),MATCH(Projektin_tiedot[[#Headers],[ULKOASUN SUUNNITTELIJA]],Parametrit[#Headers],0))*INDEX(PROJEKTIPARAMETRIT!$B$12:$H$12,1,MATCH(Projektin_tiedot[[#Headers],[ULKOASUN SUUNNITTELIJA]],Parametrit[#Headers],0))*Projektin_tiedot[[#This Row],[ARVIOITU TYÖMÄÄRÄ]]","v":{"v":0,"d":"0 €"}},{"$f":"INDEX(Parametrit[],MATCH(Projektin_tiedot[[#This Row],[PROJEKTIN TYYPPI]],Parametrit[PROJEKTIN TYYPPI],0),MATCH(Projektin_tiedot[[#Headers],[TAPAHTUMAN HENKILÖSTÖ]],Parametrit[#Headers],0))*INDEX(PROJEKTIPARAMETRIT!$B$12:$H$12,1,MATCH(Projektin_tiedot[[#Headers],[TAPAHTUMAN HENKILÖSTÖ]],Parametrit[#Headers],0))*Projektin_tiedot[[#This Row],[ARVIOITU TYÖMÄÄRÄ]]","v":{"v":12000,"d":"12,000 €"}},{"$f":"INDEX(Parametrit[],MATCH(Projektin_tiedot[[#This Row],[PROJEKTIN TYYPPI]],Parametrit[PROJEKTIN TYYPPI],0),MATCH(Projektin_tiedot[[#Headers],[JÄRJESTELMÄN-VALVONTA]],Parametrit[#Headers],0))*INDEX(PROJEKTIPARAMETRIT!$B$12:$H$12,1,MATCH(Projektin_tiedot[[#Headers],[JÄRJESTELMÄN-VALVONTA]],Parametrit[#Headers],0))*Projektin_tiedot[[#This Row],[ARVIOITU TYÖMÄÄRÄ]]","v":{"v":1500,"d":"1,500 €"}},{"$f":"INDEX(Parametrit[],MATCH(Projektin_tiedot[[#This Row],[PROJEKTIN TYYPPI]],Parametrit[PROJEKTIN TYYPPI],0),MATCH(Projektin_tiedot[[#Headers],[ASIAKKUUSPÄÄLLIKKÖ]],Parametrit[#Headers],0))*INDEX(PROJEKTIPARAMETRIT!$B$12:$H$12,1,MATCH(Projektin_tiedot[[#Headers],[ASIAKKUUSPÄÄLLIKKÖ]],Parametrit[#Headers],0))*Projektin_tiedot[[#This Row],[TOTEUTUNUT TYÖMÄÄRÄ]]","v":{"v":9180,"d":"9,180 €"}},{"$f":"INDEX(Parametrit[],MATCH(Projektin_tiedot[[#This Row],[PROJEKTIN TYYPPI]],Parametrit[PROJEKTIN TYYPPI],0),MATCH(Projektin_tiedot[[#Headers],[PROJEKTIPÄÄLLIKKÖ]],Parametrit[#Headers],0))*INDEX(PROJEKTIPARAMETRIT!$B$12:$H$12,1,MATCH(Projektin_tiedot[[#Headers],[PROJEKTIPÄÄLLIKKÖ]],Parametrit[#Headers],0))*Projektin_tiedot[[#This Row],[TOTEUTUNUT TYÖMÄÄRÄ]]","v":{"v":3060,"d":"3,060 €"}},{"$f":"INDEX(Parametrit[],MATCH(Projektin_tiedot[[#This Row],[PROJEKTIN TYYPPI]],Parametrit[PROJEKTIN TYYPPI],0),MATCH(Projektin_tiedot[[#Headers],[STRATEGIAPÄÄLLIKKÖ]],Parametrit[#Headers],0))*INDEX(PROJEKTIPARAMETRIT!$B$12:$H$12,1,MATCH(Projektin_tiedot[[#Headers],[STRATEGIAPÄÄLLIKKÖ]],Parametrit[#Headers],0))*Projektin_tiedot[[#This Row],[TOTEUTUNUT TYÖMÄÄRÄ]]","v":{"v":0,"d":"0 €"}},{"$f":"INDEX(Parametrit[],MATCH(Projektin_tiedot[[#This Row],[PROJEKTIN TYYPPI]],Parametrit[PROJEKTIN TYYPPI],0),MATCH(Projektin_tiedot[[#Headers],[ULKOASUN SUUNNITTELIJA]],Parametrit[#Headers],0))*INDEX(PROJEKTIPARAMETRIT!$B$12:$H$12,1,MATCH(Projektin_tiedot[[#Headers],[ULKOASUN SUUNNITTELIJA]],Parametrit[#Headers],0))*Projektin_tiedot[[#This Row],[TOTEUTUNUT TYÖMÄÄRÄ]]","v":{"v":0,"d":"0 €"}},{"$f":"INDEX(Parametrit[],MATCH(Projektin_tiedot[[#This Row],[PROJEKTIN TYYPPI]],Parametrit[PROJEKTIN TYYPPI],0),MATCH(Projektin_tiedot[[#Headers],[TAPAHTUMAN HENKILÖSTÖ]],Parametrit[#Headers],0))*INDEX(PROJEKTIPARAMETRIT!$B$12:$H$12,1,MATCH(Projektin_tiedot[[#Headers],[TAPAHTUMAN HENKILÖSTÖ]],Parametrit[#Headers],0))*Projektin_tiedot[[#This Row],[TOTEUTUNUT TYÖMÄÄRÄ]]","v":{"v":12240,"d":"12,240 €"}},{"$f":"INDEX(Parametrit[],MATCH(Projektin_tiedot[[#This Row],[PROJEKTIN TYYPPI]],Parametrit[PROJEKTIN TYYPPI],0),MATCH(Projektin_tiedot[[#Headers],[JÄRJESTELMÄN-VALVONTA]],Parametrit[#Headers],0))*INDEX(PROJEKTIPARAMETRIT!$B$12:$H$12,1,MATCH(Projektin_tiedot[[#Headers],[JÄRJESTELMÄN-VALVONTA]],Parametrit[#Headers],0))*Projektin_tiedot[[#This Row],[TOTEUTUNUT TYÖMÄÄRÄ]]","v":{"v":1530,"d":"1,530 €"}}]
[null,"SUMMA",{"$nulls":5},{"$f":"SUBTOTAL(109,Projektin_tiedot[ARVIOITU TYÖMÄÄRÄ])","v":1500},{"$f":"SUBTOTAL(109,Projektin_tiedot[TOTEUTUNUT TYÖMÄÄRÄ])","v":1510},{"$f":"SUBTOTAL(109,Projektin_tiedot[ARVIOITU KESTO])","v":225},{"$f":"SUBTOTAL(109,Projektin_tiedot[TOTEUTUNUT KESTO])","v":597}]

{"sheet":"PROJEKTIN SUMMAT","index":3,"n_rows":10,"n_cols":14,"rows_kept":10}
[null,{"$f":"PROJEKTIPARAMETRIT!B1","v":"Yrityksen nimi"}]
[null,"Tapahtumanhallintaprojektin seuranta"]
[null,{"$f":"PROJEKTIPARAMETRIT!B3","v":"Yrityksen nimi Luottamuksellinen"}]
["Oikeanpuoleisesta solusta alkava Pivot-taulukko päivittyy automaattisesti.\nTIEDOKSI\nVoit päivittää oikealla olevan Pivot-taulukon valitsemalla sen (siis minkä tahansa Pivot-taulukon solun) ja valitsemalla sitten PIVOT-TAULUKKOTYÖKALUT | ANALYSOI -valintanauhan välilehdessä Päivitä. Voit vaihtoehtoisesti painaa VAIHTO+F10 missä tahansa Pivot-taulukon solussa ja valita sitten Päivitä.","PROJEKTIN NIMI","ASIAKKUUS-PÄÄLLIKKÖ, ARVIO","PROJEKTI-PÄÄLLIKKÖ, ARVIO","STRATEGIA-PÄÄLLIKKÖ, ARVIO","ULKOASUN SUUNNITTELIJA, ARVIO  ","TAPAHTUMAN HENKILÖSTÖ, ARVIO  ","JÄRJESTELMÄN-VALVONTA, ARVIO","ASIAKAKKUUS-PÄÄLLIKKÖ, TOTEUTUNUT","PROJEKTI-PÄÄLLIKKÖ, TOTEUTUNUT","STRATEGIA-PÄÄLLIKKÖ, TOTEUTUNUT","ULKOASUN SUUNNITTELIJA, TOTEUTUNUT","TAPAHTUMAN HENKILÖSTÖ, TOTEUTUNUT","JÄRJESTELMÄN-VALVONTA, TOTEUTUNUT"]
[null,"Projekti 1",{"v":7200,"d":"7,200.00 €"},{"v":2400,"d":"2,400.00 €"},{"v":1200,"d":"1,200.00 €"},{"v":7920,"d":"7,920.00 €"},{"v":2640,"d":"2,640.00 €"},{"v":19800,"d":"19,800.00 €"},{"v":18000,"d":"18,000.00 €"},{"v":0,"d":"0.00 €"},{"v":0,"d":"0.00 €"},{"v":0,"d":"0.00 €"},{"v":0,"d":"0.00 €"},{"v":1320,"d":"1,320.00 €"}]
[null,"Projekti 2",{"v":14400,"d":"14,400.00 €"},{"v":24000,"d":"24,000.00 €"},{"v":2400,"d":"2,400.00 €"},{"v":14040,"d":"14,040.00 €"},{"v":23400,"d":"23,400.00 €"},{"v":5850,"d":"5,850.00 €"},{"v":6000,"d":"6,000.00 €"},{"v":3900,"d":"3,900.00 €"},{"v":4000,"d":"4,000.00 €"},{"v":0,"d":"0.00 €"},{"v":0,"d":"0.00 €"},{"v":2340,"d":"2,340.00 €"}]
[null,"Projekti 3",{"v":18000,"d":"18,000.00 €"},{"v":12000,"d":"12,000.00 €"},{"v":3000,"d":"3,000.00 €"},{"v":18000,"d":"18,000.00 €"},{"v":12000,"d":"12,000.00 €"},{"v":0,"d":"0.00 €"},{"v":0,"d":"0.00 €"},{"v":25000,"d":"25,000.00 €"},{"v":25000,"d":"25,000.00 €"},{"v":0,"d":"0.00 €"},{"v":0,"d":"0.00 €"},{"v":3000,"d":"3,000.00 €"}]
[null,"Projekti 4",{"v":5400,"d":"5,400.00 €"},{"v":10800,"d":"10,800.00 €"},{"v":900,"d":"900.00 €"},{"v":5220,"d":"5,220.00 €"},{"v":10440,"d":"10,440.00 €"},{"v":0,"d":"0.00 €"},{"v":0,"d":"0.00 €"},{"v":0,"d":"0.00 €"},{"v":0,"d":"0.00 €"},{"v":1160,"d":"1,160.00 €"},{"v":1200,"d":"1,200.00 €"},{"v":870,"d":"870.00 €"}]
[null,"Projekti 5",{"v":9000,"d":"9,000.00 €"},{"v":3000,"d":"3,000.00 €"},{"v":1500,"d":"1,500.00 €"},{"v":9180,"d":"9,180.00 €"},{"v":3060,"d":"3,060.00 €"},{"v":0,"d":"0.00 €"},{"v":0,"d":"0.00 €"},{"v":0,"d":"0.00 €"},{"v":0,"d":"0.00 €"},{"v":12240,"d":"12,240.00 €"},{"v":12000,"d":"12,000.00 €"},{"v":1530,"d":"1,530.00 €"}]
[null,"Kaikki yhteensä",{"v":54000,"d":"54,000.00 €"},{"v":52200,"d":"52,200.00 €"},{"v":9000,"d":"9,000.00 €"},{"v":54360,"d":"54,360.00 €"},{"v":51540,"d":"51,540.00 €"},{"v":25650,"d":"25,650.00 €"},{"v":24000,"d":"24,000.00 €"},{"v":28900,"d":"28,900.00 €"},{"v":29000,"d":"29,000.00 €"},{"v":13400,"d":"13,400.00 €"},{"v":13200,"d":"13,200.00 €"},{"v":9060,"d":"9,060.00 €"}]